[Event "Chinese League Division-A 2024"]
[Site "Fuling Chongqing"]
[Date "2024.06.27"]
[Round "2.2"]
[White "Zeng, Chongsheng"]
[Black "Xiu, Deshun"]
[Result "1-0"]
[ECO "C24"]
[WhiteElo "2578"]
[BlackElo "2514"]
[Annotator "TA"]
[PlyCount "55"]
[EventDate "2024.06.28"]
[EventType "team-tourn"]
[EventCountry "CHN"]
[SourceTitle "playchess.com"]
[Source "ChessBase"]
[SourceQuality "1"]
[TimeControl "40/5400+30:1800+30"]

{[%evp 11,55,21,28,13,9,0,10,0,4,-12,-13,-25,-41,-50,-53,-25,-5,-8,-1,0,31,43,33,46,39,56,194,241,242,248,237,230,230,237,190,106,402,90,522,530,29992,29993,29993,29994,29995,29993]} 1. e4 {[%emt 0:00:05]} e5 {[%emt 0:00:13]} 2. Bc4 {[%emt 0:00:14]} Nf6 {[%emt 0:01:13]} 3. d3 {[%emt 0:00:05]} c6 {[%emt 0:02:15]} 4. Nf3 {[%emt 0:00:11]} d6 {[%emt 0:06:37]} 5. O-O {[%emt 0:02:08]} Be7 {[%emt 0:00:09]} 6. Re1 {[%emt 0:01:58]} O-O {[%emt 0:00:08]} 7. Nbd2 {[%emt 0:00:11]} Nbd7 {[%emt 0:05:52]} 8. d4 {[%emt 0:06:00]} exd4 {[%emt 0:03:29]} 9. Nxd4 {[%emt 0:00:29] The position is equal.} Re8 {[%emt 0:10:08]} 10. Bf1 {[%emt 0:05:39]} Bf8 {[%emt 0:00:19]} 11. c4 {[%emt 0:02:52]} Qb6 {[%emt 0:07:41]} 12. Nc2 {[%emt 0:07:42]} Nc5 {[%emt 0:19:21][%cal Oc8g4]} 13. Qf3 {[%emt 0:00:09] [#]} d5 $1 {[%emt 0:08:30]} 14. e5 {[%emt 0:10:18]} (14. cxd5 cxd5) 14... Nfe4 {[%emt 0:01:35] Black wants to play ...Nxd2.} 15. b4 {[%emt 0:03:02]} Nd7 {[%emt 0:06:08]} 16. Nxe4 {[%emt 0:04:20]} dxe4 {[%emt 0:01:09]} 17. Rxe4 {[%emt 0:00:34] Strongly threatening c5.} Nxe5 {[%emt 0:00:57]} 18. Qh5 {[%emt 0:06:51]} g6 {[%emt 0:04:16]} (18... Qc7 $1 $14) 19. Rxe5 $18 {[%emt 0:00:40]} gxh5 {[%emt 0:00:04]} 20. Rxe8 {[%emt 0:00:04]} Kg7 {[%emt 0:00:13][%cal Oa7a5] Dodges Bh6+. Black is weak on the dark squares} 21. c5 {[%emt 0:04:11][%mdl 1024] White has strong compensation.} Qc7 {[%emt 0:00:30]} 22. Bb2+ {[%emt 0:00:10]} f6 {[%emt 0:00:43]} 23. Nd4 {[%emt 0:02:52]} (23. Bxf6+ $18 Kxf6 24. Rxf8+ Kg7 25. Re8) 23... a5 $2 {[%emt 0:06:33][%mdl 8192] [#]} (23... Qf7 $16 24. Nf5+ Kg6) 24. Rae1 $2 {[%emt 0:03:43]} (24. Bc4 $1 $18 {is the precise move to win.}) 24... axb4 $2 {[%emt 0:01:00][%mdl 8192]} (24... Qf7 $16 {is tougher.}) 25. Bc4 {[%emt 0:01:29]} (25. Ne6+ Bxe6 26. Rxa8 Qf7 $16) 25... Qa5 {[%emt 0:02:46] [#]} 26. R1e7+ {[%emt 0:00:53][%mdl 512] White mates.} Kg6 {[%emt 0:01:30]} 27. Rxf8 {[%emt 0:00:52]} Bg4 {[%emt 0:01:00]} 28. Rxf6+ {[%emt 0:00:58] Weighted Error Value: White=0.33/Black=0.73.  Loses game:     	---       	Black=2      Missed win:     	White=1     	---        Mistake:       	White=1     	Black=1      Inaccurate:     	---       	Black=2      OK:         	White=5     	Black=10     Best:        	White=3     	Black=2      Brilliant:      	White=1     	---} 1-0

[Event "Chinese League Division-A 2024"]
[Site "Fuling Chongqing"]
[Date "2024.06.27"]
[Round "2.3"]
[White "Zhang, Di"]
[Black "Liu, Yan"]
[Result "1/2-1/2"]
[ECO "B50"]
[WhiteElo "2362"]
[BlackElo "2573"]
[Annotator "TA"]
[PlyCount "126"]
[EventDate "2024.06.28"]
[EventType "team-tourn"]
[EventCountry "CHN"]
[SourceTitle "playchess.com"]
[Source "ChessBase"]
[SourceQuality "1"]
[TimeControl "40/5400+30:1800+30"]

{[%evp 38,126,4,0,31,23,17,0,0,0,2,0,0,0,0,0,10,0,2,0,0,0,0,0,0,0,0,0,0,0,197,104,188,62,61,70,69,37,71,27,108,96,92,83,106,71,80,71,87,99,106,103,100,93,116,108,92,81,86,55,68,0,215,98,100,0,0,0,0,0,0,0,0,0,0,0,0,0,0,0,0,0,0,0,0,0,0,0,0,0,295]} 1. e4 {[%emt 0:00:05]} c5 {[%emt 0:00:28]} 2. Nf3 {[%emt 0:00:14]} d6 {[%emt 0:00:18]} 3. c3 {[%emt 0:00:18]} Nf6 {[%emt 0:01:48]} 4. h3 {[%emt 0:00:19]} g6 {[%emt 0:03:55]} 5. Bd3 {[%emt 0:00:19]} Bg7 {[%emt 0:01:07]} 6. Bc2 {[%emt 0:01:09]} e5 {[%emt 0:03:34]} 7. d4 {[%emt 0:00:23]} exd4 {[%emt 0:02:30]} 8. cxd4 {[%emt 0:00:09]} O-O {[%emt 0:01:03]} 9. O-O {[%emt 0:00:23]} Nc6 {[%emt 0:03:24]} 10. Nc3 {[%emt 0:00:30]} cxd4 {[%emt 0:21:31]} 11. Nxd4 {[%emt 0:00:10]} d5 {[%emt 0:01:08]} 12. Nxc6 {[%emt 0:03:02]} bxc6 {[%emt 0:00:05]} 13. Bg5 {[%emt 0:00:12] B50: Sicilian: 2...d6, Miscellaneous.} Qc7 $146 {[%emt 0:16:49]} ({Predecessor:} 13... h6 14. Be3 Be6 15. Qf3 d4 16. Rfd1 c5 17. Bf4 Qb6 18. Na4 Qb5 19. b3 Nd7 20. Rab1 c4 21. bxc4 Qxc4 {1-0 Martinez Alcantara,J (2619)-Bok,B (2615) Titled Tuesday intern op 25th Jul Early blitz 2023 (9)}) 14. Bxf6 {[%emt 0:16:08]} Bxf6 {[%emt 0:01:50]} 15. exd5 {[%emt 0:00:10]} Bxc3 {[%emt 0:06:13]} 16. d6 {[%emt 0:03:08]} Qb8 {[%emt 0:01:13]} 17. bxc3 {[%emt 0:00:22]} Rd8 {[%emt 0:00:05]} 18. Qf3 {[%emt 0:10:59]} Rxd6 {[%emt 0:03:41]} 19. Be4 {[%emt 0:09:01]} Qc7 {[%emt 0:03:38]} 20. Rfd1 {[%emt 0:01:51]} Rxd1+ {[%emt 0:02:23]} 21. Rxd1 {[%emt 0:00:09]} Be6 {[%emt 0:00:07]} 22. a4 {[%emt 0:10:50]} Rc8 {[%emt 0:08:13]} 23. Qf6 {[%emt 0:06:39]} Re8 {[%emt 0:00:46]} 24. Bf3 {[%emt 0:06:41]} Bd5 {[%emt 0:02:50]} 25. Bxd5 {[%emt 0:01:18]} cxd5 {[%emt 0:00:05]} 26. g3 {[%emt 0:01:24]} Qe5 {[%emt 0:03:20]} 27. Qc6 {[%emt 0:01:24]} Kg7 {[%emt 0:04:33]} 28. Qc5 {[%emt 0:03:07]} Qh5 $1 {[%emt 0:03:58]} 29. Rxd5 {[%emt 0:06:36]} (29. Qxd5 $2 {too greedy.} Re1+ (29... Qxh3 30. Qd4+ Kg8 31. Qxa7 $16) 30. Rxe1 Qxd5 $19) 29... Qxh3 {[%emt 0:01:39]} 30. Qd4+ {[%emt 0:00:02]} (30. Qxa7 $2 Re1#) 30... Kh6 $1 {[%emt 0:01:19]} 31. Re5 {[%emt 0:00:31]} (31. Qxa7 $2 Re1#) 31... Rxe5 $1 {[%emt 0:01:27]} 32. Qxe5 {[%emt 0:00:02]} Qd7 {[%emt 0:00:21]} 33. a5 {[%emt 0:01:25]} g5 $2 {[%emt 0:01:02]} (33... Qd1+ $11 {and Black stays safe.} 34. Kg2 Qd3) 34. Qf6+ $18 {[%emt 0:06:58]} Kh5 {[%emt 0:00:01]} 35. c4 {[%emt 0:00:09]} (35. Kg2 $1 $18) 35... Qc7 $1 $14 {[%emt 0:00:52]} 36. Qf3+ {[%emt 0:01:03]} Kg6 {[%emt 0:00:07]} 37. Qd5 {[%emt 0:00:06]} Kf6 {[%emt 0:00:46]} 38. a6 {[%emt 0:02:15]} h6 {[%emt 0:00:25]} (38... h5 $11 {remains equal.}) 39. c5 $16 {[%emt 0:01:12]} Ke7 {[%emt 0:00:23]} 40. Kh2 {[%emt 0:00:00]} f6 {[%emt 0:00:00]} 41. Qf5 {[%emt 0:11:45]} h5 {[%emt 0:10:47]} 42. Qh7+ {[%emt 0:18:26]} Kd8 {[%emt 0:00:05]} 43. Qg8+ {[%emt 0:00:39]} Kd7 {[%emt 0:00:07]} 44. Qf7+ {[%emt 0:00:19]} Kc6 {[%emt 0:01:02]} 45. Qxf6+ {[%emt 0:00:06]} ({Reject} 45. Qxh5 Kxc5 46. Qf3 Kb5 $11) 45... Kb5 {[%emt 0:01:47]} 46. Qxg5 {[%emt 0:02:22]} Kxa6 {[%emt 0:00:58]} 47. Qxh5 {[%emt 0:00:02]} Kb5 {[%emt 0:00:49]} 48. f4 {[%emt 0:04:33]} a5 $1 {[%emt 0:03:12]} 49. f5 {[%emt 0:00:01]} (49. Kh3 $14) 49... Qxc5 $2 {[%emt 0:02:10] [#]} (49... Qe5 $1 $11) 50. Qe2+ {[%emt 0:00:01]} (50. Qf3 $1 $18 {is the precise move to win. aiming for f6.} a4 51. f6) 50... Kc6 $16 {[%emt 0:00:37] [#]} 51. f6 {[%emt 0:01:01]} (51. Qe6+ $1 $16 Kc7 52. f6) 51... Kd7 $1 $11 {[%emt 0:01:59]} 52. Qg4+ {[%emt 0:02:50]} Kd6 {[%emt 0:02:18]} 53. Kh3 {[%emt 0:01:16]} Qe5 {[%emt 0:02:23]} 54. Qf3 {[%emt 0:00:36]} Ke6 {[%emt 0:00:55]} 55. g4 {[%emt 0:02:36]} (55. f7 $5 Qh8+ $8 56. Kg2 Qb2+ 57. Kh3 Qh8+ 58. Kg2 Qb2+ 59. Kf1 Qb5+ 60. Ke1 Qb1+ 61. Qd1 Qe4+ 62. Kf2 Qf5+ 63. Kg1 $11) 55... Qxf6 {[%emt 0:00:49]} 56. Qb3+ {[%emt 0:00:22]} Ke7 {[%emt 0:00:52]} 57. Qa3+ {[%emt 0:00:10]} Kf7 {[%emt 0:01:06]} 58. Qxa5 {[%emt 0:00:05]} Qf3+ {[%emt 0:00:57]} 59. Kh4 {[%emt 0:00:05]} Qh1+ {[%emt 0:00:14]} 60. Kg3 {[%emt 0:00:57]} Qg1+ {[%emt 0:00:10]} 61. Kf4 {[%emt 0:00:20]} Qf1+ {[%emt 0:00:36]} 62. Kg3 {[%emt 0:00:15]} Qg1+ {[%emt 0:00:07]} 63. Kf4 {[%emt 0:00:02]} Ke6 $2 {[%emt 0:00:09][%mdl 8192]} (63... Qd4+ $11 64. Kf3 Qd1+ 65. Ke3 Qxg4) 1/2-1/2

[Event "Chinese League Division-A 2024"]
[Site "Fuling Chongqing"]
[Date "2024.06.27"]
[Round "2.4"]
[White "Lei, Tingjie"]
[Black "Li, Ruofan"]
[Result "1-0"]
[ECO "C55"]
[WhiteElo "2548"]
[BlackElo "2321"]
[Annotator "RC"]
[PlyCount "75"]
[EventDate "2024.06.28"]
[EventType "team-tourn"]
[EventCountry "CHN"]
[SourceTitle "playchess.com"]
[Source "ChessBase"]
[SourceQuality "1"]
[TimeControl "40/5400+30:1800+30"]

1. e4 {[%emt 0:00:11]} e5 {[%emt 0:00:07]} 2. Nf3 {[%emt 0:00:09]} Nc6 {[%emt 0:00:06]} 3. Bc4 {[%emt 0:00:11]} Nf6 {[%emt 0:00:55]} 4. d3 {[%emt 0:00:06]} Be7 {[%emt 0:00:18]} 5. O-O {[%emt 0:00:38]} O-O {[%emt 0:00:10]} 6. Re1 {[%emt 0:00:23]} d6 {[%emt 0:00:38]} 7. a4 {[%emt 0:00:08]} h6 {[%emt 0:07:36]} 8. a5 {[%emt 0:06:03]} Be6 {[%emt 0:04:22]} 9. a6 {[%emt 0:07:14]} bxa6 {[%emt 0:11:12]} 10. Rxa6 {[%emt 0:03:06]} Nb4 {[%emt 0:00:47]} 11. Ra1 {[%emt 0:02:54]} c5 {[%emt 0:00:11]} 12. Nbd2 {[%emt 0:04:25]} Nd7 {[%emt 0:06:34]} 13. c3 {[%emt 0:13:30]} Bxc4 {[%emt 0:04:10]} 14. Nxc4 {[%emt 0:00:08]} Nc6 {[%emt 0:00:05]} 15. Ne3 {[%emt 0:02:32]} Nb6 {[%emt 0:04:33]} 16. Nf5 {[%emt 0:04:23]} Re8 {[%emt 0:10:12]} 17. h4 {[%emt 0:12:10]} Bf6 {[%emt 0:04:59]} 18. g4 {[%emt 0:05:06]} d5 {[%emt 0:12:34]} 19. Qe2 {[%emt 0:06:20]} Ne7 {[%emt 0:06:06]} 20. g5 {[%emt 0:04:26]} Nxf5 {[%emt 0:00:13]} 21. exf5 {[%emt 0:00:28]} e4 {[%emt 0:00:59]} 22. gxf6 {[%emt 0:02:53]} exf3 {[%emt 0:00:08]} 23. Qxe8+ {[%emt 0:00:14]} Qxe8 {[%emt 0:00:05]} 24. Rxe8+ {[%emt 0:00:05]} Rxe8 {[%emt 0:00:03]} 25. Be3 {[%emt 0:03:06]} c4 {[%emt 0:03:17]} 26. d4 {[%emt 0:04:23]} Nd7 {[%emt 0:10:58]} 27. fxg7 {[%emt 0:01:13]} Kxg7 {[%emt 0:00:39]} 28. Kh2 {[%emt 0:03:17]} Re4 {[%emt 0:05:33]} 29. Kg3 {[%emt 0:01:43]} Nf6 {[%emt 0:00:11]} 30. Ra6 {[%emt 0:05:20]} Rg4+ {[%emt 0:03:35]} 31. Kxf3 {[%emt 0:00:04]} Rxh4 {[%emt 0:00:11]} 32. Bf4 {[%emt 0:00:17]} Rh5 {[%emt 0:01:35]} 33. Be5 {[%emt 0:00:04]} Rxf5+ {[%emt 0:00:04]} 34. Ke2 {[%emt 0:00:59]} h5 {[%emt 0:00:20]} 35. f4 {[%emt 0:00:15]} Kg6 {[%emt 0:00:46]} 36. Kf3 {[%emt 0:00:06]} Kg7 {[%emt 0:00:22]} 37. Rxf6 {[%emt 0:00:51]} Rxf6 {[%emt 0:02:58]} 38. f5 {[%emt 0:00:04]} 1-0

[Event "Chinese League Division-A 2024"]
[Site "Fuling Chongqing"]
[Date "2024.06.27"]
[Round "2.5"]
[White "Wang, Yu A."]
[Black "Wang, Chuqiao"]
[Result "1/2-1/2"]
[ECO "C47"]
[WhiteElo "2234"]
[BlackElo "2278"]
[Annotator "RC"]
[PlyCount "62"]
[EventDate "2024.06.28"]
[EventType "team-tourn"]
[EventCountry "CHN"]
[SourceTitle "playchess.com"]
[Source "ChessBase"]
[SourceQuality "1"]
[TimeControl "40/5400+30:1800+30"]

1. e4 {[%emt 0:00:02]} e5 {[%emt 0:00:16]} 2. Nf3 {[%emt 0:00:02]} Nc6 {[%emt 0:00:08]} 3. Nc3 {[%emt 0:00:05]} Nf6 {[%emt 0:00:12]} 4. d4 {[%emt 0:00:02]} exd4 {[%emt 0:00:21]} 5. Nxd4 {[%emt 0:00:02]} Bb4 {[%emt 0:00:25]} 6. Nxc6 {[%emt 0:00:03]} bxc6 {[%emt 0:00:08]} 7. Bd3 {[%emt 0:00:02]} d5 {[%emt 0:00:26]} 8. exd5 {[%emt 0:00:02]} cxd5 {[%emt 0:00:14]} 9. O-O {[%emt 0:00:06]} O-O {[%emt 0:00:08]} 10. Bg5 {[%emt 0:00:07]} c6 {[%emt 0:01:32]} 11. Qf3 {[%emt 0:00:07]} Be7 {[%emt 0:00:36]} 12. h3 {[%emt 0:05:25]} Be6 {[%emt 0:10:53]} 13. Ne2 {[%emt 0:07:19]} h6 {[%emt 0:04:12]} 14. Bf4 {[%emt 0:03:53]} Qb6 {[%emt 0:08:02]} 15. b3 {[%emt 0:04:51]} c5 {[%emt 0:04:52]} 16. Ng3 {[%emt 0:06:24]} c4 {[%emt 0:08:13]} 17. Bf5 {[%emt 0:02:40]} cxb3 {[%emt 0:00:53]} 18. axb3 {[%emt 0:03:09]} Bd6 {[%emt 0:14:01]} 19. Bd3 {[%emt 0:06:50]} Bxf4 {[%emt 0:09:57]} 20. Qxf4 {[%emt 0:00:03]} a5 {[%emt 0:01:58]} 21. Nf5 {[%emt 0:13:43]} Bxf5 {[%emt 0:02:24]} 22. Qxf5 {[%emt 0:00:10]} Rfe8 {[%emt 0:02:25]} 23. Ra4 {[%emt 0:04:44]} Qc7 {[%emt 0:02:00]} 24. Qf4 {[%emt 0:05:56]} Qxf4 {[%emt 0:01:46]} 25. Rxf4 {[%emt 0:00:02]} Ne4 {[%emt 0:01:55]} 26. Bxe4 {[%emt 0:04:04]} dxe4 {[%emt 0:01:05]} 27. Re1 {[%emt 0:02:32]} Rac8 {[%emt 0:01:16]} 28. Rfxe4 {[%emt 0:01:31]} Rxe4 {[%emt 0:00:07]} 29. Rxe4 {[%emt 0:00:04]} Rxc2 {[%emt 0:00:04]} 30. Ra4 {[%emt 0:01:00]} Rc3 {[%emt 0:00:09]} 31. Rxa5 {[%emt 0:00:06]} Rxb3 {[%emt 0:00:04]} 1/2-1/2

[Event "Chinese League Division-A 2024"]
[Site "Fuling Chongqing"]
[Date "2024.06.27"]
[Round "2.6"]
[White "Bai, Jinshi"]
[Black "Chen, Yuan"]
[Result "1-0"]
[ECO "D30"]
[WhiteElo "2564"]
[BlackElo "2294"]
[Annotator "TA"]
[PlyCount "135"]
[EventDate "2024.06.28"]
[EventType "team-tourn"]
[EventCountry "CHN"]
[SourceTitle "playchess.com"]
[Source "ChessBase"]
[SourceQuality "1"]
[TimeControl "40/5400+30:1800+30"]

{[%evp 24,135,72,50,48,45,33,39,93,90,97,97,99,88,84,91,125,91,93,93,94,83,92,84,75,89,88,60,68,46,50,50,52,48,44,51,45,50,101,65,97,87,98,78,171,47,43,41,170,168,198,204,201,191,194,209,226,164,192,164,202,165,160,161,143,162,146,134,134,134,101,19,19,20,20,18,23,8,112,112,80,0,62,0,0,0,17,29,16,31,71,71,70,70,184,184,241,197,362,362,961,886,1083,865,29959,29958,5957,8055,29983,29984,29989,29986,29982,29984]} 1. Nf3 {[%emt 0:00:04]} e6 {[%emt 0:00:18]} 2. g3 {[%emt 0:02:44]} d5 {[%emt 0:00:13]} 3. Bg2 {[%emt 0:00:48]} Nf6 {[%emt 0:00:31]} 4. d4 {[%emt 0:03:14]} c5 {[%emt 0:01:59]} 5. c4 {[%emt 0:01:03]} Nc6 {[%emt 0:06:03]} 6. cxd5 {[%emt 0:02:00]} exd5 {[%emt 0:00:06]} 7. O-O {[%emt 0:00:17]} Be7 {[%emt 0:03:49]} 8. dxc5 {[%emt 0:03:03]} Bxc5 {[%emt 0:00:07]} 9. a3 {[%emt 0:00:52]} a6 {[%emt 0:06:48] D30: Queen's Gambit Declined: Systems without Nc3.} 10. b4 {[%emt 0:12:44]} Ba7 {[%emt 0:00:20]} 11. Nc3 {[%emt 0:00:40]} d4 {[%emt 0:09:45]} 12. Na4 {[%emt 0:00:20]} O-O {[%emt 0:00:17]} 13. Bb2 {[%emt 0:04:05]} Ne4 {[%emt 0:13:56]} 14. Rc1 {[%emt 0:09:54]} (14. Nxd4 Nxf2 15. Rxf2 Nxd4 $15) 14... Bg4 {[%emt 0:24:35]} 15. Nc5 $146 {[%emt 0:22:20]} ({Predecessor:} 15. h3 Bh5 16. Nc5 Bxc5 17. bxc5 Bxf3 18. Bxf3 Re8 19. h4 Qf6 20. Qc2 Qe5 21. Kg2 {1-0 Romanov,E (2595)-Berzinsh,R (2392) Riga Tech op 2nd 2012 (4)}) 15... Bxc5 {[%emt 0:02:35]} ({Black should try} 15... Nxc5 $1 $14 16. bxc5 Bxf3 17. Bxf3 Qd7) 16. bxc5 $16 {[%emt 0:00:06]} Bxf3 {[%emt 0:04:49]} 17. exf3 {[%emt 0:05:30]} Nf6 {[%emt 0:11:57]} 18. f4 {[%emt 0:02:49]} Qa5 {[%emt 0:01:45]} 19. Bxc6 {[%emt 0:04:27]} bxc6 {[%emt 0:00:02]} 20. Qxd4 {[%emt 0:00:06]} Rab8 {[%emt 0:05:05]} 21. Rc2 {[%emt 0:05:32]} Rfd8 {[%emt 0:03:01]} 22. Qc4 {[%emt 0:01:48]} Qb5 {[%emt 0:02:15]} 23. Be5 {[%emt 0:02:38]} Qxc4 {[%emt 0:01:06]} 24. Rxc4 {[%emt 0:00:04]} Rb5 {[%emt 0:00:05]} 25. Re1 {[%emt 0:02:12]} Nd5 {[%emt 0:00:54]} 26. Bd6 {[%emt 0:00:04]} (26. f5 $5) 26... f6 $1 {[%emt 0:00:34]} 27. f5 {[%emt 0:00:15]} Kf7 {[%emt 0:00:24]} 28. Rce4 {[%emt 0:04:46]} Rb3 {[%emt 0:00:34]} 29. Ra4 {[%emt 0:01:40]} Ra8 {[%emt 0:00:01]} 30. Re6 {[%emt 0:00:05]} g5 {[%emt 0:00:47]} (30... Rb5 $14) 31. h4 {[%emt 0:01:01]} h6 {[%emt 0:00:15]} 32. hxg5 {[%emt 0:01:32]} hxg5 {[%emt 0:00:01]} 33. g4 {[%emt 0:00:05]} Rb5 {[%emt 0:01:25]} (33... Rc3 $16 {was necessary.}) 34. Rc4 {[%emt 0:00:38]} (34. Rae4 $18) 34... Re8 $1 $14 {[%emt 0:00:34]} 35. Rce4 {[%emt 0:00:04]} (35. Rxe8 {simplifies} Kxe8 36. Re4+ Kd7 37. Kg2) 35... Rc8 {[%emt 0:00:31]} (35... Rxe6 $14 36. fxe6+ Ke8) 36. Kg2 $18 {[%emt 0:01:02]} Ra8 {[%emt 0:00:20]} 37. a4 {[%emt 0:01:09]} Rb7 {[%emt 0:00:37]} 38. Bg3 {[%emt 0:00:05]} Rc8 {[%emt 0:00:08]} 39. Rd6 $1 {[%emt 0:00:18]} Re7 {[%emt 0:00:46]} 40. Ree6 {[%emt 0:00:00]} Rxe6 {[%emt 0:00:00]} 41. Rxe6 {[%emt 0:22:17]} Nc3 {[%emt 0:20:35]} 42. Re3 {[%emt 0:05:45]} Nxa4 {[%emt 0:00:33]} 43. Bd6 {[%emt 0:00:04]} Re8 {[%emt 0:01:17]} 44. Rb3 {[%emt 0:00:08]} Re4 {[%emt 0:00:07]} 45. f4 {[%emt 0:05:25]} Re2+ {[%emt 0:01:22]} 46. Kf3 {[%emt 0:00:09]} Rb2 {[%emt 0:00:06]} 47. Re3 {[%emt 0:03:13]} (47. Rxb2 $1 $16 {White threatens Rb7+ and mate.} Nxb2 48. fxg5 fxg5 49. Ke4) 47... Rb7 $1 $11 {[%emt 0:00:32]} 48. fxg5 {[%emt 0:00:03]} fxg5 {[%emt 0:00:04]} 49. Re6 {[%emt 0:00:08]} Rb3+ $1 {[%emt 0:06:15]} 50. Kf2 {[%emt 0:03:43]} Nc3 {[%emt 0:02:16] [#]} (50... Rb4 $11 {keeps the balance.}) 51. Re7+ $1 $16 {[%emt 0:00:37]} Kf6 {[%emt 0:00:12]} 52. Re6+ {[%emt 0:01:14]} Kf7 {[%emt 0:00:01]} 53. Be7 {[%emt 0:01:15]} ({White should play} 53. Bc7 $14) 53... Rb4 $11 {[%emt 0:00:24]} 54. Kg3 {[%emt 0:00:34]} Ne4+ {[%emt 0:03:24]} 55. Kf3 {[%emt 0:00:04]} Nd2+ $1 {[%emt 0:00:06]} 56. Ke3 {[%emt 0:00:09]} Nf1+ {[%emt 0:01:20]} 57. Ke2 {[%emt 0:00:16]} Nh2 {[%emt 0:00:35]} 58. Bxg5 {[%emt 0:00:11]} Rxg4 {[%emt 0:00:15] [#]} (58... Nxg4 $14 59. Rxc6 Rb2+ 60. Bd2 a5) 59. Be3 $1 $18 {[%emt 0:01:18]} Rg2+ {[%emt 0:00:27]} (59... Ra4 $142 60. Rxc6 Ng4) 60. Kd3 $18 {[%emt 0:00:04]} Ng4 $2 {[%emt 0:00:49]} (60... Nf3 {might work better.} 61. Ke4 (61. Rxc6 $2 {loses.} Ne5+ 62. Kd4 Nxc6+ $19) 61... Ne1) 61. Bd4 $18 {[%emt 0:00:04]} (61. Rxc6 $2 {is the wrong capture.} Ne5+ 62. Kd4 Nxc6+ $19) 61... Rg3+ $2 {[%emt 0:00:31]} (61... Nf2+ 62. Kc4 Rg5 63. Bxf2 Rxf5) 62. Ke4 $18 {[%emt 0:00:25]} Rh3 {[%emt 0:00:30]} 63. Rxc6 {[%emt 0:00:18]} a5 {[%emt 0:00:20]} 64. Rc7+ {[%emt 0:00:04]} Ke8 {[%emt 0:00:08]} 65. c6 {[%emt 0:00:57]} Rh4 {[%emt 0:01:01]} 66. Kd5 {[%emt 0:00:13]} Nh6 {[%emt 0:00:16]} 67. Rc8+ {[%emt 0:00:48]} Kf7 {[%emt 0:00:02]} 68. c7 {[%emt 0:00:40]} 1-0

[Event "Chinese League Division-A 2024"]
[Site "Fuling Chongqing"]
[Date "2024.06.27"]
[Round "2.7"]
[White "Lu, Shanglei"]
[Black "Kong, Xiangrui"]
[Result "1/2-1/2"]
[ECO "C13"]
[WhiteElo "2606"]
[BlackElo "2439"]
[Annotator "TA"]
[PlyCount "73"]
[EventDate "2024.06.28"]
[EventType "team-tourn"]
[EventCountry "CHN"]
[SourceTitle "playchess.com"]
[Source "ChessBase"]
[SourceQuality "1"]
[TimeControl "40/5400+30:1800+30"]

{[%evp 16,73,24,13,0,22,13,10,14,0,0,0,0,0,0,0,0,0,-2,-30,-27,-35,-42,-45,-40,-47,-35,-39,-31,-44,-46,-45,-48,-42,-26,-37,-33,-37,-19,-33,-33,-33,-36,-32,-33,-33,-33,-33,-19,-19,-19,-19,-19,-19,-19,-19,-4,-4,-5,-18]} 1. e4 {[%emt 0:00:02]} e6 {[%emt 0:00:11]} 2. d4 {[%emt 0:00:05]} d5 {[%emt 0:00:04]} 3. Nc3 {[%emt 0:00:12]} Nf6 {[%emt 0:00:20]} 4. Bg5 {[%emt 0:00:38]} dxe4 {[%emt 0:00:49]} 5. Nxe4 {[%emt 0:00:05]} Nbd7 {[%emt 0:00:28]} 6. Nf3 {[%emt 0:00:10]} Be7 {[%emt 0:00:19]} 7. Nxf6+ {[%emt 0:00:10]} Bxf6 {[%emt 0:00:32]} 8. h4 {[%emt 0:00:04]} c5 {[%emt 0:01:03]} 9. Qd2 {[%emt 0:03:41]} cxd4 {[%emt 0:00:27]} 10. O-O-O {[%emt 0:16:15]} O-O {[%emt 0:00:42]} 11. Nxd4 {[%emt 0:05:06]} h6 {[%emt 0:00:30]} 12. Be3 {[%emt 0:01:53]} Nb6 {[%emt 0:00:23][%cal Od8d5,Bd7b6,Bb6d5,Bd5e3][%mdl 32]} 13. Kb1 {[%emt 0:14:08]} Nd5 {[%emt 0:02:35]} 14. Be2 {[%emt 0:00:40]} Nxe3 {[%emt 0:29:58]} ({Of course not} 14... Bxh4 $6 15. Bxh6 Bf6 16. c4 $16) 15. Qxe3 {[%emt 0:01:45][%cal Od4e6] aiming for Nxe6!} Qb6 {[%emt 0:00:08]} 16. c3 {[%emt 0:09:22] Active counter play!} Rd8 {[%emt 0:06:42]} 17. g3 {[%emt 0:04:25]} Bd7 {[%emt 0:06:49]} 18. Bf3 {[%emt 0:16:22]} Ba4 {[%emt 0:09:27]} 19. Nb3 {[%emt 0:01:30]} Rxd1+ {[%emt 0:17:51]} 20. Rxd1 {[%emt 0:00:30]} Qxe3 {[%emt 0:00:13]} 21. fxe3 {[%emt 0:00:06]} Rb8 {[%emt 0:00:02]} 22. Rd2 {[%emt 0:03:04]} b6 {[%emt 0:00:21] Inhibits Nc5.} 23. Nd4 {[%emt 0:00:20]} Rd8 {[%emt 0:02:09]} 24. b3 {[%emt 0:00:20]} Be8 {[%emt 0:00:24] [#] Hoping for ...e5.} 25. Kc2 {[%emt 0:00:05]} Kf8 {[%emt 0:01:44]} 26. c4 {[%emt 0:03:24]} Ke7 {[%emt 0:00:30]} 27. Nc6+ {[%emt 0:02:38]} Bxc6 {[%emt 0:00:02]} 28. Bxc6 {[%emt 0:00:05]} h5 {[%emt 0:05:40]} 29. Rxd8 {[%emt 0:08:42]} Kxd8 $15 {[%emt 0:00:01][%mdl 4096] Endgame. KB-KB} 30. Bf3 {[%emt 0:00:05]} g6 {[%emt 0:02:11]} 31. Kd3 {[%emt 0:00:12]} Be5 {[%emt 0:00:30]} 32. g4 {[%emt 0:00:03] The position is equal.} hxg4 {[%emt 0:00:04]} 33. Bxg4 {[%emt 0:00:02]} Ke7 {[%emt 0:01:32]} 34. h5 {[%emt 0:00:52]} f5 {[%emt 0:00:36]} 35. Bf3 {[%emt 0:00:11]} g5 {[%emt 0:01:54]} 36. h6 {[%emt 0:00:16]} Kf6 {[%emt 0:03:23]} 37. Bb7 {[%emt 0:00:27] Weighted Error Value: White=0.04 (flawless) /Black=0.02 (flawless) .  Inaccurate:     	White=1     	---        OK:         	White=14    	Black=15     Best:        	White=1     	Black=2} 1/2-1/2